fUST/lending_fUST_20240225
["ID","MTS","AMOUNT","RATE_DAILY","PERIOD"]
[315103442,1708822239667,-500.0,0.00019442,2]
[315103443,1708822239676,-500.0,0.00019442,2]
[315103444,1708822239686,-500.0,0.00019442,2]
[315103445,1708822239695,-500.0,0.00019442,2]
[315103446,1708822239704,-624.73766497,0.00019442,2]
[315103447,1708822239713,-500.0,0.00019443,2]
[315103448,1708822239722,-500.0,0.00019443,2]
[315103449,1708822239731,-500.0,0.00019443,2]
[315103450,1708822239740,-500.0,0.00019443,2]
[315103451,1708822239749,-500.0,0.00019443,2]
[315103452,1708822239758,-500.0,0.00019443,2]
[315103453,1708822239767,-284.82775864,0.00019443,2]
[315103454,1708822239776,-151.0,0.00019443,2]
[315103455,1708822239786,-504.60971602,0.00019443,2]
[315103456,1708822239795,-500.0,0.00019443,2]
[315103457,1708822239805,-500.0,0.00019443,2]
[315103459,1708822239814,-500.0,0.00019443,2]
[315103461,1708822239824,-500.0,0.00019443,2]
[315103462,1708822239838,-500.0,0.00019443,2]
[315103463,1708822239846,-500.0,0.00019443,2]
[315103464,1708822239855,-500.0,0.00019443,2]
[315103465,1708822239864,-500.0,0.00019443,2]
[315103466,1708822239874,-887.54,0.00019443,2]
[315103467,1708822239883,-500.0,0.00019443,2]
[315103468,1708822239893,-500.0,0.00019443,2]
[315103469,1708822239901,-500.0,0.00019443,2]
[315103470,1708822239912,-500.0,0.00019443,2]
[315103471,1708822239922,-500.0,0.00019443,2]
[315103472,1708822239931,-500.0,0.00019443,2]
[315103473,1708822239940,-500.0,0.00019443,2]
[315103474,1708822239950,-500.0,0.00019443,2]
[315103475,1708822239959,-500.0,0.00019443,2]
[315103476,1708822239969,-500.0,0.00019443,2]
[315103477,1708822239978,-500.0,0.00019443,2]
[315103478,1708822239987,-500.0,0.00019443,2]
[315103479,1708822239997,-500.0,0.00019443,2]
[315103480,1708822240008,-500.0,0.00019443,2]
[315103481,1708822240017,-500.0,0.00019443,2]
[315103482,1708822240026,-500.0,0.00019443,2]
[315103483,1708822240035,-500.47282651,0.00019443,2]
[315103484,1708822240044,-500.0,0.00019443,2]
[315103485,1708822240053,-500.0,0.00019443,2]
[315103486,1708822240062,-500.0,0.00019443,2]
[315103487,1708822240072,-500.0,0.00019443,2]
[315103488,1708822240080,-500.0,0.00019443,2]
[315103489,1708822240090,-500.0,0.00019443,2]
[315103490,1708822240099,-500.0,0.00019443,2]
[315103491,1708822240108,-500.0,0.00019443,2]
[315103492,1708822240117,-500.0,0.00019443,2]
[315103493,1708822240126,-500.49679597,0.00019443,2]
[315103494,1708822240135,-515.12224836,0.00019443,2]
[315103495,1708822240145,-500.0,0.00019443,2]
[315103496,1708822240153,-500.0,0.00019443,2]
[315103497,1708822240162,-500.32198171,0.00019443,2]
[315103498,1708822240171,-500.0,0.00019443,2]
[315103499,1708822240180,-500.0,0.00019443,2]
[315103500,1708822240188,-500.0,0.00019443,2]
[315103501,1708822240197,-500.0,0.00019443,2]
[315103502,1708822240207,-570.54,0.00019443,2]
[315103503,1708822240215,-604.08,0.00019443,2]
[315103504,1708822240224,-500.0,0.00019443,2]
[315103505,1708822240234,-500.0,0.00019443,2]
[315103506,1708822240242,-500.0,0.00019443,2]
[315103507,1708822240252,-500.0,0.00019443,2]
[315103508,1708822240260,-500.0,0.00019443,2]
[315103509,1708822240269,-617.7387389,0.00019443,2]
[315103510,1708822240278,-500.0,0.00019443,2]
[315103511,1708822240287,-500.0,0.00019443,2]
[315103512,1708822240295,-500.0,0.00019443,2]
[315103513,1708822240304,-500.0,0.00019443,2]
[315103514,1708822240314,-500.0,0.00019443,2]
[315103515,1708822240323,-390.91557995,0.00019443,2]
[315103516,1708822240332,-500.0,0.00019443,2]
[315103517,1708822240341,-478.69691622,0.00019443,2]
[315103518,1708822240350,-500.0,0.00019443,2]
[315103519,1708822240359,-500.0,0.00019443,2]
[315103520,1708822240368,-500.0,0.00019443,2]
[315103521,1708822240378,-549.24329572,0.00019443,2]
[315103522,1708822240386,-500.0,0.00019443,2]
[315103523,1708822240396,-502.48437314,0.00019443,2]
[315103524,1708822240405,-500.0,0.00019443,2]
[315103525,1708822240414,-500.0,0.00019443,2]
[315103527,1708822240423,-500.0,0.00019443,2]
[315103528,1708822240432,-645.50007399,0.00019443,2]
[315103529,1708822240441,-500.44649528,0.00019443,2]
[315103530,1708822240450,-500.0,0.00019443,2]
[315103531,1708822240459,-500.0,0.00019443,2]
[315103532,1708822240469,-500.0,0.00019443,2]
[315103533,1708822240478,-500.0,0.00019443,2]
[315103534,1708822240488,-500.0,0.00019443,2]
[315103535,1708822240497,-303.24755095,0.00019443,2]
[315103536,1708822240506,-500.0,0.00019443,2]
[315103537,1708822240515,-500.0,0.00019443,2]
[315103538,1708822240524,-500.0,0.00019443,2]
[315103539,1708822240533,-500.0,0.00019443,2]
[315103540,1708822240543,-500.0,0.00019443,2]
[315103541,1708822240552,-403.29293715,0.00019443,2]
[315103542,1708822240561,-500.0,0.00019443,2]
[315103543,1708822240570,-518.08991757,0.00019443,2]
[315103544,1708822240580,-594.0737504,0.00019443,2]
[315103545,1708822240589,-377.76735061,0.00019443,2]
[315103546,1708822240598,-500.0,0.00019443,2]
[315103547,1708822240607,-500.0,0.00019443,2]
[315103548,1708822240616,-500.0,0.00019443,2]
[315103549,1708822240626,-504.84228172,0.00019443,2]
[315103550,1708822240635,-909.33,0.00019443,2]
[315103551,1708822240643,-571.29194225,0.00019443,2]
[315103552,1708822240652,-500.0,0.00019443,2]
[315103553,1708822240661,-500.0,0.00019443,2]
[315103554,1708822240670,-500.0,0.00019443,2]
[315103555,1708822240679,-500.0,0.00019443,2]
[315103556,1708822240688,-500.0,0.00019443,2]
[315103557,1708822240697,-270.72050512,0.00019443,2]
[315103558,1708822240706,-500.0,0.00019443,2]
[315103559,1708822240716,-500.0,0.00019443,2]
[315103560,1708822240725,-500.0,0.00019443,2]
[315103561,1708822240735,-500.0,0.00019443,2]
[315103562,1708822240744,-500.0,0.00019443,2]
[315103563,1708822240753,-1687.13,0.00019443,2]
[315103564,1708822240763,-500.0,0.00019443,2]
[315103565,1708822240772,-627.86,0.00019443,2]
[315103566,1708822240781,-834.0,0.00019443,2]
[315103567,1708822240790,-500.95783052,0.00019443,2]
[315103568,1708822240799,-187.1546475,0.00019443,2]
[315103569,1708822240808,-500.0,0.00019443,2]
[315103570,1708822240817,-1611.37,0.00019443,2]
[315103571,1708822240827,-500.0,0.00019443,2]
[315103572,1708822240840,-500.0,0.00019443,2]
[315103573,1708822240849,-500.0,0.00019443,2]
[315103574,1708822240858,-500.0,0.00019443,2]
[315103575,1708822240867,-500.0,0.00019443,2]
[315103576,1708822240877,-500.0,0.00019443,2]
[315103577,1708822240887,-500.0,0.00019443,2]
[315103578,1708822240896,-503.08902147,0.00019443,2]
[315103579,1708822240905,-530.22,0.00019443,2]
[315103580,1708822240915,-500.0,0.00019443,2]
[315103581,1708822240925,-500.0,0.00019443,2]
[315103582,1708822240935,-500.0,0.00019443,2]
[315103583,1708822240944,-500.0,0.00019443,2]
[315103584,1708822240953,-500.0,0.00019443,2]
[315103585,1708822240962,-500.0,0.00019443,2]
[315103586,1708822240971,-500.0,0.00019443,2]
[315103587,1708822240981,-591.28690162,0.00019443,2]
[315103588,1708822240990,-500.0,0.00019443,2]
[315103589,1708822241000,-500.0,0.00019443,2]
[315103590,1708822241009,-500.0,0.00019443,2]
[315103591,1708822241020,-545.57,0.00019443,2]
[315103592,1708822241031,-401.69965791,0.00019443,2]
[315103593,1708822241064,-500.0,0.00019443,2]
[315103594,1708822241073,-500.0,0.00019443,2]
[315103595,1708822241083,-224.1570089,0.00019443,2]
[315103596,1708822241092,-500.0,0.00019443,2]
[315103597,1708822241102,-500.0,0.00019443,2]
[315103598,1708822241111,-500.0,0.00019443,2]
[315103599,1708822241120,-500.0,0.00019443,2]
[315103600,1708822241129,-500.0,0.00019443,2]
[315103601,1708822241138,-500.0,0.00019443,2]
[315103602,1708822241147,-500.0,0.00019443,2]
[315103603,1708822241157,-500.0,0.00019443,2]
[315103604,1708822241166,-500.28194284,0.00019443,2]
[315103605,1708822241175,-500.0,0.00019443,2]
[315103606,1708822241184,-500.0,0.00019443,2]
[315103607,1708822241193,-500.0,0.00019443,2]
[315103608,1708822241203,-500.0,0.00019443,2]
[315103609,1708822241212,-500.0,0.00019443,2]
[315103610,1708822241221,-500.0,0.00019443,2]
[315103611,1708822241231,-500.0,0.00019443,2]
[315103612,1708822241240,-511.77,0.00019451,2]
[315103613,1708822241249,-500.0,0.00019452,2]
[315103614,1708822241257,-500.0,0.00019452,2]
[315103615,1708822241266,-500.0,0.00019452,2]
[315103616,1708822241276,-500.0,0.00019452,2]
[315103617,1708822241285,-500.65626971,0.00019452,2]
[315103618,1708822241294,-500.0,0.00019452,2]
[315103619,1708822241303,-500.0,0.00019452,2]
[315103620,1708822241312,-500.0,0.00019452,2]
[315103621,1708822241321,-500.0,0.00019452,2]
[315103622,1708822241330,-500.0,0.00019452,2]
[315103623,1708822241338,-500.0,0.00019452,2]
[315103624,1708822241347,-500.0,0.00019452,2]
[315103625,1708822241356,-500.0,0.00019452,2]
[315103626,1708822241366,-500.0,0.00019452,2]
[315103627,1708822241375,-500.0,0.00019452,2]
[315103628,1708822241384,-882.24,0.00019452,2]
[315103629,1708822241393,-188.19,0.00019452,2]
[315103630,1708822241402,-385.07513965,0.00019452,2]
[315103631,1708822241412,-500.0,0.00019452,2]
[315103632,1708822241421,-495.29967306,0.00019452,2]
[315103633,1708822241430,-500.0,0.00019452,2]
[315103634,1708822241439,-1457.08,0.00019452,2]
[315103635,1708822241447,-1150.01,0.00019452,2]
[315103636,1708822241456,-1051.71,0.00019452,2]
[315103637,1708822241465,-1697.81,0.00019452,2]
[315103638,1708822241474,-500.0,0.00019452,2]
[315103639,1708822241484,-500.0,0.00019452,2]
[315103640,1708822241494,-5875.21,0.00019452,2]
[315103641,1708822241503,-500.0,0.00019452,2]
[315103643,1708822241512,-1252.38,0.00019452,2]
[315103644,1708822241521,-500.0,0.00019452,2]
[315103646,1708822241530,-431.47201084,0.00019452,2]
[315103647,1708822241539,-500.0,0.00019452,2]
[315103648,1708822241548,-500.0,0.00019452,2]
[315103649,1708822241558,-501.85083767,0.00019452,2]
[315103650,1708822241566,-237.39225171,0.00019452,2]
[315103651,1708822241575,-504.0,0.00019452,2]
[315103652,1708822241584,-7770.07,0.00019452,2]
[315103653,1708822241593,-500.0,0.00019452,2]
[315103654,1708822241602,-500.0,0.00019452,2]
[315103655,1708822241611,-500.0,0.00019452,2]
[315103656,1708822241620,-538.21,0.00019452,2]
[315103657,1708822241628,-500.0,0.00019452,2]
[315103658,1708822241637,-559.94,0.00019452,2]
[315103659,1708822241646,-500.0,0.00019452,2]
[315103660,1708822241655,-500.0,0.00019452,2]
[315103661,1708822241664,-500.0,0.00019452,2]
[315103662,1708822241673,-500.0,0.00019452,2]
[315103663,1708822241682,-638.1,0.00019452,2]
[315103664,1708822241691,-5136.98,0.00019452,2]
[315103665,1708822241700,-500.0,0.00019452,2]
[315103666,1708822241709,-500.0,0.00019452,2]
[315103667,1708822241718,-580.79,0.00019452,2]
[315103668,1708822241727,-3310.21,0.00019452,2]
[315103669,1708822241738,-2143.54,0.00019452,2]
[315103670,1708822241747,-500.0,0.00019452,2]
[315103671,1708822241756,-5688.47,0.00019452,2]
[315103672,1708822241765,-255.36271448,0.00019452,2]
[315103673,1708822241775,-500.0,0.00019452,2]
[315103674,1708822241784,-1462.17,0.00019452,2]
[315103675,1708822241794,-1425.86,0.00019452,2]
[315103676,1708822241804,-500.0,0.00019452,2]
[315103677,1708822241813,-500.0,0.00019452,2]
[315103678,1708822241822,-936.45,0.00019452,2]
[315103679,1708822241831,-500.0,0.00019452,2]
[315103680,1708822241841,-500.0,0.00019452,2]
[315103681,1708822241851,-500.0,0.00019452,2]
[315103682,1708822241860,-500.0,0.00019452,2]
[315103683,1708822241870,-688.69,0.00019452,2]
[315103684,1708822241880,-1091.2,0.00019452,2]
[315103685,1708822241889,-909.33,0.00019453,2]
[315103686,1708822241898,-500.0,0.00019453,2]
[315103687,1708822241908,-500.0,0.00019453,2]
[315103688,1708822241919,-497.28656827,0.00019453,2]
[315103689,1708822241929,-500.0,0.00019454,2]
[315103690,1708822241939,-500.0,0.00019454,2]
[315103691,1708822241948,-500.0,0.00019454,2]
[315103692,1708822241957,-500.0,0.00019454,2]
[315103693,1708822242058,-529.71300492,0.00019454,2]
[315103694,1708822242068,-200.5294442,0.0001948,2]
[315103695,1708822242077,-200.5294442,0.0001948,2]
[315103696,1708822242086,-200.5294442,0.0001948,2]
[315103697,1708822242095,-200.5294442,0.0001948,2]
[315103698,1708822242104,-292.37119662,0.00019488,2]
[315103699,1708822242113,-200.5294442,0.000195,2]
[315103700,1708822242122,-511.77,0.00019506,2]
[315103701,1708822242131,-909.33,0.0001955,2]
[315103702,1708822242140,-500.0,0.0001955,2]
[315103703,1708822242149,-500.0,0.0001955,2]
[315103704,1708822242158,-909.33,0.00019551,2]
[315103705,1708822242168,-909.33,0.00019551,2]
[315103706,1708822242177,-500.0,0.00019551,2]
[315103707,1708822242186,-500.0,0.00019551,2]
[315103708,1708822242195,-500.0,0.00019551,2]
[315103709,1708822242204,-500.0,0.00019551,2]
[315103710,1708822242213,-999.35260013,0.00019551,2]
[315103711,1708822242222,-909.33,0.00019552,2]
[315103712,1708822242232,-500.0,0.00019552,2]
[315103713,1708822242241,-500.0,0.00019552,2]
[315103714,1708822242251,-1518.48968101,0.00019552,2]
[315103715,1708822242259,-511.77,0.00019561,2]
[315103716,1708822242269,-306.0,0.00019562,2]
[315103717,1708822242278,-2500.0,0.000196,2]
[315103718,1708822242287,-511.77,0.00019616,2]
[315103719,1708822242295,-153.0,0.00019616,2]
[315103720,1708822242304,-153.0,0.00019616,2]
[315103721,1708822242314,-153.5507139,0.00019616,2]
[315103722,1708822242323,-153.0,0.00019616,2]
[315103723,1708822242332,-153.0,0.00019616,2]
[315103724,1708822242341,-292.37119662,0.00019626,2]
[315103725,1708822242349,-166.666666,0.00019627,2]
[315103726,1708822242358,-511.77,0.0001967,2]
[315103727,1708822242366,-500.0,0.00019703,2]
[315103728,1708822242375,-887.6,0.00019703,2]
[315103729,1708822242385,-500.0,0.00019703,2]
[315103730,1708822242393,-500.0,0.00019714,2]
[315103731,1708822242403,-500.0,0.00019714,2]
[315103732,1708822242411,-500.0,0.00019714,2]
[315103733,1708822242420,-500.0,0.00019714,2]
[315103734,1708822242430,-500.0,0.00019714,2]
[315103735,1708822242438,-500.0,0.00019714,2]
[315103736,1708822242447,-500.0,0.00019714,2]
[315103737,1708822242456,-500.0,0.00019717,2]
[315103738,1708822242465,-887.54,0.00019717,2]
[315103739,1708822242474,-500.0,0.00019717,2]
[315103740,1708822242484,-585.43173339,0.00019717,2]
[315103741,1708822242493,-500.0,0.00019717,2]
[315103742,1708822242502,-500.0,0.00019717,2]
[315103743,1708822242511,-500.0,0.00019717,2]
[315103744,1708822242520,-405.98993402,0.00019717,2]
[315103745,1708822242529,-500.0,0.00019717,2]
[315103746,1708822242538,-500.39871675,0.00019717,2]
[315103747,1708822242547,-510.60834629,0.00019717,2]
[315103748,1708822242556,-500.0,0.00019717,2]
[315103749,1708822242565,-500.0,0.00019717,2]
[315103750,1708822242575,-500.0,0.00019717,2]
[315103751,1708822242584,-500.0,0.00019717,2]
[315103752,1708822242593,-500.0,0.00019717,2]
[315103753,1708822242602,-500.0,0.00019717,2]
[315103754,1708822242610,-500.0,0.00019717,2]
[315103755,1708822242619,-500.0,0.00019717,2]
[315103756,1708822242628,-500.0,0.00019717,2]
[315103757,1708822242638,-500.0,0.00019717,2]
[315103758,1708822242646,-500.0,0.00019717,2]
[315103759,1708822242655,-500.0,0.00019717,2]
[315103760,1708822242664,-500.45562564,0.00019717,2]
[315103761,1708822242673,-500.0,0.00019717,2]
[315103762,1708822242683,-500.0,0.00019717,2]
[315103763,1708822242692,-500.0,0.00019717,2]
[315103764,1708822242700,-500.0,0.00019717,2]
[315103765,1708822242710,-500.0,0.00019717,2]
[315103766,1708822242719,-500.0,0.00019717,2]
[315103767,1708822242728,-500.0,0.00019717,2]
[315103768,1708822242739,-500.0,0.00019717,2]
[315103769,1708822242749,-500.0,0.00019717,2]
[315103770,1708822242758,-500.0,0.00019717,2]
[315103771,1708822242768,-500.0,0.00019717,2]
[315103772,1708822242777,-470.59177166,0.00019717,2]
[315103773,1708822242786,-500.0,0.00019717,2]
[315103774,1708822242795,-500.0,0.00019717,2]
[315103775,1708822242804,-1687.13,0.00019717,2]
[315103776,1708822242812,-500.0,0.00019717,2]
[315103777,1708822242822,-627.86,0.00019717,2]
[315103778,1708822242832,-834.0,0.00019717,2]
[315103779,1708822242844,-500.0,0.00019717,2]
[315103780,1708822242853,-1611.37,0.00019717,2]
[315103781,1708822242863,-312.24134907,0.00019717,2]
[315103782,1708822242872,-500.0,0.00019717,2]
[315103784,1708822242882,-575.34932165,0.00019717,2]
[315103785,1708822242891,-500.0,0.00019717,2]
[315103786,1708822242900,-500.0,0.00019717,2]
[315103787,1708822242910,-500.0,0.00019717,2]
[315103788,1708822242920,-500.0,0.00019717,2]
[315103789,1708822242929,-500.0,0.00019717,2]
[315103790,1708822242939,-500.0,0.00019717,2]
[315103791,1708822242948,-492.92581817,0.00019717,2]
[315103792,1708822242958,-500.0,0.00019717,2]
[315103793,1708822242967,-500.0,0.00019717,2]
[315103794,1708822242976,-500.0,0.00019717,2]
[315103795,1708822242986,-500.0,0.00019717,2]
[315103796,1708822242996,-500.0,0.00019717,2]
[315103797,1708822243006,-909.33,0.00019725,2]
[315103798,1708822243016,-500.0,0.00019725,2]
[315103799,1708822243026,-500.0,0.00019725,2]
[315103800,1708822243035,-511.77,0.00019725,2]
[315103801,1708822243044,-207.23000754,0.00019726,2]
[315103802,1708822243054,-500.0,0.00019726,2]
[315103803,1708822243063,-500.0,0.00019726,2]
[315103804,1708822243073,-500.0,0.00019726,2]
[315103805,1708822243082,-500.0,0.00019726,2]
[315103806,1708822243091,-500.0,0.00019726,2]
[315103807,1708822243100,-500.0,0.00019726,2]
[315103808,1708822243109,-500.0,0.00019726,2]
[315103809,1708822243118,-882.24,0.00019726,2]
[315103810,1708822243127,-1457.08,0.00019726,2]
[315103811,1708822243136,-1150.01,0.00019726,2]
[315103812,1708822243146,-1051.71,0.00019726,2]
[315103813,1708822243155,-1697.81,0.00019726,2]
[315103814,1708822243165,-500.0,0.00019726,2]
[315103815,1708822243174,-500.0,0.00019726,2]
[315103816,1708822243183,-5875.21,0.00019726,2]
[315103817,1708822243191,-500.0,0.00019726,2]
[315103818,1708822243200,-1252.38,0.00019726,2]
[315103819,1708822243210,-500.0,0.00019726,2]
[315103821,1708822243219,-500.0,0.00019726,2]
[315103822,1708822243228,-500.0,0.00019726,2]
[315103823,1708822243238,-7770.07,0.00019726,2]
[315103824,1708822243247,-500.0,0.00019726,2]
[315103825,1708822243256,-500.0,0.00019726,2]
[315103826,1708822243265,-198.48,0.00019726,2]
[315103827,1708822243275,-538.21,0.00019726,2]
[315103828,1708822243284,-500.0,0.00019726,2]
[315103829,1708822243293,-644.03515198,0.00019726,2]
[315103830,1708822243302,-500.0,0.00019726,2]
[315103831,1708822243311,-500.0,0.00019726,2]
[315103832,1708822243319,-500.0,0.00019726,2]
[315103833,1708822243329,-638.1,0.00019726,2]
[315103834,1708822243338,-5136.98,0.00019726,2]
[315103835,1708822243348,-500.0,0.00019726,2]
[315103836,1708822243357,-452.72966059,0.00019726,2]
[315103837,1708822243366,-580.79,0.00019726,2]
[315103838,1708822243375,-3310.21,0.00019726,2]
[315103839,1708822243384,-2143.54,0.00019726,2]
[315103840,1708822243393,-5688.47,0.00019726,2]
[315103841,1708822243402,-440.11976334,0.00019726,2]
[315103842,1708822243412,-1462.17,0.00019726,2]
[315103843,1708822243421,-1425.86,0.00019726,2]
[315103844,1708822243430,-500.0,0.00019726,2]
[315103845,1708822243439,-936.45,0.00019726,2]
[315103846,1708822243449,-500.0,0.00019726,2]
[315103847,1708822243458,-500.0,0.00019726,2]
[315103848,1708822243467,-500.0,0.00019726,2]
[315103849,1708822243477,-688.69,0.00019726,2]
[315103850,1708822243486,-1091.2,0.00019726,2]
[315103851,1708822243495,-500.0,0.00019728,2]
[315103852,1708822243505,-292.37119662,0.00019763,2]
[315103853,1708822243513,-511.77,0.0001978,2]
[315103854,1708822243522,-2000.0,0.000198,2]
[315103855,1708822243532,-909.33,0.00019825,2]
[315103856,1708822243541,-500.0,0.00019825,2]
[315103857,1708822243550,-500.0,0.00019825,2]
[315103858,1708822243559,-909.33,0.00019827,2]
[315103859,1708822243568,-500.0,0.00019827,2]
[315103860,1708822243577,-500.0,0.00019827,2]
[315103861,1708822243586,-511.77,0.00019835,2]
[315103862,1708822243595,-70083.04692305,0.00019888,2]
[315103863,1708822243605,-511.77,0.0001989,2]
[315103864,1708822243613,-112825.82879709,0.000199,2]
[315103865,1708822243624,-292.37119662,0.000199,2]
[315103866,1708822243632,-2085.61115878,0.000199,2]
[315103867,1708822243642,-511.77,0.00019944,2]
[315103868,1708822243651,-500.0,0.00019977,2]
[315103869,1708822243660,-887.6,0.00019977,2]
[315103870,1708822243669,-500.0,0.00019977,2]
[315103871,1708822243679,-581.22510241,0.00019988,2]
[315103872,1708822243687,-500.71978356,0.00019988,2]
[315103873,1708822243696,-490.21714662,0.00019988,2]
[315103874,1708822243705,-500.0,0.00019988,2]
[315103875,1708822243714,-500.0,0.00019991,2]
[315103876,1708822243723,-887.54,0.00019991,2]
[315103877,1708822243732,-500.0,0.00019991,2]
[315103878,1708822243742,-500.0,0.00019991,2]
[315103879,1708822243751,-500.0,0.00019991,2]
[315103880,1708822243760,-399.08353161,0.00019991,2]
[315103881,1708822243769,-500.0,0.00019991,2]
[315103882,1708822243778,-500.0,0.00019991,2]
[315103883,1708822243788,-500.0,0.00019991,2]
[315103884,1708822243797,-500.0,0.00019991,2]
[315103885,1708822243806,-500.0,0.00019991,2]
[315103886,1708822243815,-500.0,0.00019991,2]
[315103887,1708822243825,-500.0,0.00019991,2]
[315103888,1708822243835,-500.0,0.00019991,2]
[315103889,1708822243845,-500.0,0.00019991,2]
[315103890,1708822243855,-500.0,0.00019991,2]
[315103891,1708822243864,-500.0,0.00019991,2]
[315103892,1708822243873,-240.45,0.00019991,2]
[315103893,1708822243883,-500.0,0.00019991,2]
[315103894,1708822243892,-500.0,0.00019991,2]
[315103895,1708822243902,-1687.13,0.00019991,2]
[315103896,1708822243912,-500.0,0.00019991,2]
[315103897,1708822243921,-627.86,0.00019991,2]
[315103898,1708822243930,-834.0,0.00019991,2]
[315103899,1708822243940,-1611.37,0.00019991,2]
[315103900,1708822243949,-283.48,0.00019991,2]
[315103901,1708822243959,-500.0,0.00019991,2]
[315103902,1708822243968,-500.0,0.00019991,2]
[315103903,1708822243977,-500.0,0.00019991,2]
[315103904,1708822243987,-500.56299601,0.00019991,2]
[315103905,1708822243997,-500.0,0.00019991,2]
[315103906,1708822244007,-500.0,0.00019991,2]
[315103907,1708822244017,-500.0,0.00019991,2]
[315103908,1708822244026,-1254.60718454,0.00019998,2]
[315103909,1708822244035,-621.05516522,0.00019998,2]
[315103910,1708822244045,-273.7273831,0.00019998,2]
[315103911,1708822244054,-4697.79543124,0.00019999,2]
[315103912,1708822244064,-909.33,0.00019999,2]
[315103913,1708822244073,-909.33,0.00019999,2]
[315103914,1708822244082,-909.33,0.00019999,2]
[315103915,1708822244091,-909.33,0.00019999,2]
[315103916,1708822244100,-909.33,0.00019999,2]
[315103917,1708822244107,-909.33,0.00019999,2]
[315103918,1708822244116,-909.33,0.00019999,2]
[315103919,1708822244125,-909.33,0.00019999,2]
[315103920,1708822244134,-909.33,0.00019999,2]
[315103921,1708822244143,-909.33,0.00019999,2]
[315103922,1708822244152,-909.33,0.00019999,2]
[315103923,1708822244161,-909.33,0.00019999,2]
[315103924,1708822244170,-909.33,0.00019999,2]
[315103925,1708822244179,-909.33,0.00019999,2]
[315103926,1708822244188,-909.53533676,0.00019999,2]
[315103927,1708822244196,-500.0,0.00019999,2]
[315103928,1708822244205,-500.0,0.00019999,2]
[315103929,1708822244214,-279.3313356,0.00019999,2]
[315103930,1708822244224,-500.0,0.00019999,2]
[315103931,1708822244233,-500.0,0.00019999,2]
[315103932,1708822244242,-500.0,0.00019999,2]
[315103933,1708822244252,-500.0,0.00019999,2]
[315103934,1708822244261,-175.95696323,0.00019999,2]
[315103935,1708822244270,-511.77,0.00019999,2]
[315103936,1708822244278,-188.10839072,0.00019999,2]
[315103937,1708822244287,-496692.80072974,0.0002,2]
[315103938,1708822244667,-145557.78139048,0.0002,2]
[315103943,1708822246396,-151.36378773,0.00019346,2]
[315103945,1708822246405,-926.23211227,0.00019442,3]
[315103946,1708822449110,6128.01697935,0.000125,2]
[315103947,1708822458564,158.99790848,0.000176,2]
[315103949,1708822463413,270.38676349,0.0001,2]
[315103951,1708822925749,154.82968734,0.000182,2]
[315103952,1708822933342,273.104946,0.00017727,2]
[315103953,1708823137259,3922.2922933,0.00017849,2]
[315103955,1708823222149,241.0125324,0.00018099,2]
[315103956,1708823242147,-439.97754,0.00018201,2]